bitfinex/quotes_ETHUSD_20240721
["timestamp","ask_amount","ask_price","bid_price","bid_amount"]
[1721565259208,2.4367,3506.7,3506.4,2.85192]
[1721565259403,0.02738828,3506.6,3506.5,2.85178]
[1721565259831,2.4367,3507.0,3506.5,2.85178]
[1721565260119,0.027503,3506.6,3506.5,2.85178]
[1721565260321,2.4367,3507.0,3506.5,3.51054852]
[1721565260498,0.027503,3506.6,3506.5,2.85178]
[1721565260689,2.4367,3507.0,3506.5,2.85178]
[1721565261286,0.02756875,3506.9,3506.5,2.85178]
[1721565264720,0.02756875,3506.9,3506.3,2.85195]
[1721565267693,0.02756875,3506.9,3506.4,2.85192]
[1721565273233,0.02756875,3506.9,3506.2,3.73590524]
[1721565273436,0.02756875,3506.9,3506.3,3.84351214]
[1721565273633,0.02756875,3506.9,3506.3,2.85199]
[1721565276135,0.02756875,3506.9,3506.2,3.73591524]
[1721565276136,2.85161,3506.8,3506.2,3.73591524]
[1721565276433,2.32125386,3506.7,3506.3,0.99153274]
[1721565276640,2.32125386,3506.7,3506.0,0.59726398]
[1721565276641,5.17294386,3506.7,3506.0,0.59726398]
[1721565276838,5.17294386,3506.7,3506.1,2.47890475]
[1721565277002,5.17294386,3506.7,3505.9,3.44954398]
[1721565277337,5.17294386,3506.7,3506.0,2.47891181]
[1721565277534,5.17294386,3506.7,3506.1,0.99156472]
[1721565277735,5.17294386,3506.7,3505.9,3.44954398]
[1721565277936,5.17294386,3506.7,3506.0,2.47891213]
[1721565278169,5.17294386,3506.7,3506.1,0.99156485]
[1721565278342,5.17294386,3506.7,3505.9,3.44954398]
[1721565278538,5.17294386,3506.7,3506.0,2.47891367]
[1721565278836,2.85176,3506.6,3506.1,0.99156742]
[1721565279044,2.85176,3506.6,3505.9,4.39145273]
[1721565279045,2.87828904,3506.6,3505.9,4.39145273]
[1721565279248,2.87828904,3506.6,3506.0,2.4789204]
[1721565279409,2.87828904,3506.6,3506.1,0.99156816]
[1721565279610,2.87828904,3506.6,3505.9,4.39145273]
[1721565279908,2.87828904,3506.6,3506.0,2.47892185]
[1721565280108,2.87828904,3506.6,3506.1,0.99156874]
[1721565280307,2.87828904,3506.6,3505.9,4.39145273]
[1721565280532,2.87828904,3506.6,3506.0,3.23071884]
[1721565280750,2.87828904,3506.6,3506.1,0.99156769]
[1721565280953,2.87828904,3506.6,3506.0,0.75179962]
[1721565281113,2.87828904,3506.6,3506.1,0.99156867]
[1721565281446,2.87828904,3506.6,3506.0,0.75179962]
[1721565281632,2.87828904,3506.6,3506.1,2.47891823]
[1721565281812,2.87828904,3506.6,3505.9,4.39145273]
[1721565282013,2.87828904,3506.6,3506.0,2.47891912]
[1721565282213,2.87828904,3506.6,3506.1,0.99156765]
[1721565282447,2.87828904,3506.6,3505.9,4.39145273]
[1721565282629,2.87828904,3506.6,3506.0,2.47891983]
[1721565282838,2.87828904,3506.6,3506.1,2.47891983]
[1721565283039,2.87828904,3506.6,3505.9,4.39145273]
[1721565283359,2.87828904,3506.6,3506.0,2.47891756]
[1721565283511,2.87828904,3506.6,3506.1,2.47891756]
[1721565283845,2.87828904,3506.6,3505.9,4.39145273]
[1721565284046,2.87828904,3506.6,3506.0,2.47891825]
[1721565284209,2.87828904,3506.6,3506.1,2.47891825]
[1721565284420,2.87828904,3506.6,3505.9,4.39145273]
[1721565284759,2.87828904,3506.6,3506.0,2.47893426]
[1721565284922,2.87828904,3506.6,3506.1,0.9915737]
[1721565285123,2.85186,3506.5,3505.9,0.59726398]
[1721565285337,2.85186,3506.5,3506.0,2.4789361]
[1721565285540,0.02647883,3506.4,3505.8,0.59726398]
[1721565285754,0.02647883,3506.4,3505.9,2.47905396]
[1721565285955,0.02647883,3506.4,3506.0,0.99162158]
[1721565286160,0.02647883,3506.4,3505.7,5.83301398]
[1721565286362,0.02647883,3506.4,3505.8,3.4372335]
[1721565286565,0.02647883,3506.4,3505.9,2.4790875]
[1721565286862,0.02647883,3506.4,3505.8,3.810546]
[1721565287047,0.02647883,3506.4,3505.9,2.47908662]
[1721565287248,0.02647883,3506.4,3506.0,0.9916234]
[1721565287443,0.02647883,3506.4,3505.8,4.40780998]
[1721565287444,0.02647883,3506.4,3505.8,3.810546]
[1721565287647,0.02647883,3506.4,3505.9,3.53301382]
[1721565287859,0.02647883,3506.4,3506.0,0.99162392]
[1721565288029,0.02647883,3506.4,3505.9,1.0539556]
[1721565288230,0.02647883,3506.4,3506.0,0.99162346]
[1721565288432,0.02647883,3506.4,3505.9,1.0539556]
[1721565288760,2.32117883,3506.4,3505.9,1.0539556]
[1721565290457,5.17309883,3506.4,3505.7,0.59726398]
[1721565290681,5.17309883,3506.4,3505.8,2.47908155]
[1721565290826,5.17309883,3506.4,3505.9,0.99163262]
[1721565291023,5.17309883,3506.4,3505.7,3.59726398]
[1721565291331,5.17309883,3506.4,3505.8,2.47910985]
[1721565291533,5.17309883,3506.4,3505.9,0.99164394]
[1721565291731,5.17309883,3506.4,3505.7,4.68961877]
[1721565291980,5.17309883,3506.4,3505.8,2.47911262]
[1721565292185,5.17309883,3506.4,3505.9,0.99164509]
[1721565292347,5.17309883,3506.4,3505.7,4.68961877]
[1721565292674,5.17309883,3506.4,3505.8,2.47911301]
[1721565292875,5.17309883,3506.4,3505.9,0.9916452]
[1721565293044,5.17309883,3506.4,3505.7,4.68961877]
[1721565293245,5.17309883,3506.4,3505.8,3.32293053]
[1721565293480,5.17309883,3506.4,3505.9,0.99164922]
[1721565293667,5.17309883,3506.4,3505.8,0.84380748]
[1721565293870,5.17309883,3506.4,3505.9,0.9916292]
[1721565294040,5.17309883,3506.4,3505.8,0.84380748]
[1721565294244,5.17309883,3506.4,3505.9,0.9916277]
[1721565294440,5.17309883,3506.4,3505.8,0.84380748]
[1721565294647,5.17309883,3506.4,3505.9,0.99162959]
[1721565294846,5.17309883,3506.4,3505.8,0.84380748]
[1721565295071,5.17309883,3506.4,3505.9,0.99164842]
[1721565295350,5.17309883,3506.4,3505.8,0.84380748]
[1721565295545,5.17309883,3506.4,3505.9,0.99164834]
[1721565295783,5.17309883,3506.4,3505.8,0.84380748]
[1721565297289,5.17309883,3506.4,3505.9,0.99164582]
[1721565297481,5.17309883,3506.4,3505.8,0.84380748]
[1721565298463,5.14662,3506.4,3505.8,0.84380748]
[1721565298669,0.02560961,3506.3,3505.9,0.99164082]
[1721565298858,0.02560961,3506.3,3505.8,0.84380748]
[1721565299058,0.02560961,3506.3,3505.9,0.99163825]
[1721565299258,0.02560961,3506.3,3505.8,0.84380748]
[1721565299481,0.02560961,3506.3,3505.9,0.99163814]
[1721565299688,0.02560961,3506.3,3505.8,0.84380748]
[1721565299864,0.02560961,3506.3,3505.9,0.99163813]
[1721565300185,0.02560961,3506.3,3505.8,0.84380748]
[1721565300767,5.14662,3506.4,3505.8,0.84380748]
[1721565301890,5.14662,3506.4,3505.9,0.99163848]
[1721565302193,5.14662,3506.4,3505.8,0.84380748]
[1721565302393,5.14662,3506.4,3505.9,0.99164093]
[1721565302599,5.14662,3506.4,3505.8,0.84380748]
[1721565306172,5.14662,3506.4,3505.7,8.23167]
[1721565306374,5.14662,3506.4,3505.8,0.99166001]
[1721565306692,5.14662,3506.4,3505.7,2.85247]
[1721565309207,5.14662,3506.4,3505.8,0.99167058]
[1721565309510,5.14662,3506.4,3505.7,2.85247]
[1721565309706,5.14662,3506.4,3505.8,0.99167011]
[1721565309876,5.14662,3506.4,3505.7,2.85247]
[1721565310064,5.14662,3506.4,3505.8,0.99167047]
[1721565310267,5.14662,3506.4,3505.7,2.85247]
[1721565310467,2.85201,3506.3,3505.8,0.9916718]
[1721565310665,2.85201,3506.3,3505.5,3.44986398]
[1721565310884,2.85201,3506.3,3505.6,5.33176897]
[1721565311220,2.85201,3506.3,3505.7,2.47920897]
[1721565311407,2.85201,3506.3,3505.6,2.85256]
[1721565311624,2.85201,3506.3,3505.7,2.47921348]
[1721565311814,2.85201,3506.3,3505.6,2.85256]
[1721565311981,2.85201,3506.3,3505.7,2.47921093]
[1721565312182,2.85201,3506.3,3505.6,2.85256]
[1721565312381,2.85201,3506.3,3505.7,2.47919868]
[1721565312627,2.85201,3506.3,3505.6,2.85256]
[1721565312812,2.85201,3506.3,3505.7,2.4792]
[1721565312981,2.85201,3506.3,3505.8,0.99168]
[1721565313181,2.85201,3506.3,3505.6,2.85256]
[1721565313407,2.85201,3506.3,3505.7,2.47919853]
[1721565313682,2.463,3506.0,3505.2,0.59726398]
[1721565313920,2.85217,3506.1,3505.0,0.59726398]
[1721565313921,2.85275,3505.4,3505.0,0.59726398]
[1721565314190,2.463,3505.3,3504.7,2.85326]
[1721565314808,5.31584,3505.3,3504.8,0.99195848]
[1721565314985,2.85291,3505.2,3504.5,0.59726398]
[1721565315186,2.85291,3505.2,3504.6,2.4799008]
[1721565315386,2.994584,3505.3,3504.7,0.99196032]
[1721565315387,2.85299,3505.1,3504.7,0.99196032]
[1721565315586,2.85299,3505.1,3504.5,0.59726398]
[1721565315587,2.85299,3505.1,3504.4,3.45074398]
[1721565315829,2.85299,3505.1,3504.5,2.47998978]
[1721565316026,2.85299,3505.1,3504.4,3.45074398]
[1721565316027,2.85299,3505.1,3504.4,2.85348]
[1721565316212,2.85299,3505.1,3504.5,5.48007637]
[1721565316389,2.85299,3505.1,3504.5,3.0]
[1721565318353,2.85299,3505.1,3504.3,2.2809]
[1721565318636,2.85299,3505.1,3504.3,2.85362]
[1721565319540,2.85299,3505.1,3504.4,0.55]
[1721565319745,3.7230214,3505.1,3504.4,0.55]
[1721565321097,3.7230214,3505.1,3504.2,0.55]
[1721565321313,2.85308,3505.0,3504.2,0.55]
[1721565322399,2.85308,3505.0,3504.2,3.4037]
[1721565323416,2.85294,3505.2,3504.2,3.4037]
[1721565323631,2.85294,3505.2,3504.3,2.85363]
[1721565323828,2.85294,3505.2,3504.4,0.55]
[1721565324895,0.8700354,3505.1,3504.4,0.55]
[1721565326749,0.8700354,3505.1,3504.4,3.40353]
[1721565326897,2.85294,3505.2,3504.4,3.40353]
[1721565333538,2.85294,3505.2,3504.4,5.78203]
[1721565337929,2.994584,3505.3,3504.4,5.78203]
[1721565338114,2.2885,3505.7,3504.6,2.4058]
[1721565338313,3.56535,3505.7,3504.6,2.986721]
[1721565338532,3.0,3505.6,3504.6,2.986721]
[1721565338833,3.0,3505.6,3504.9,2.4058]
[1721565339033,3.0,3505.7,3504.9,5.25894]
[1721565339334,3.0,3505.9,3505.0,2.85305]
[1721565339508,4.27685,3505.9,3505.1,2.85298]
[1721565339916,1.27685,3505.9,3505.1,2.85298]
[1721565342546,5.14079,3506.0,3505.2,5.2587]
[1721565342711,5.14065,3506.2,3505.2,2.9558]
[1721565343042,5.14065,3506.2,3505.3,2.8528]
[1721565343249,1.099266,3506.1,3505.3,2.8528]
[1721565344708,3.951436,3506.1,3505.3,2.8528]
[1721565344905,2.2885,3506.2,3505.3,5.70555]
[1721565345215,2.2885,3506.2,3505.3,2.85275]
[1721565345419,5.14059,3506.2,3505.3,2.85275]
[1721565345938,7.99275,3506.2,3505.3,2.85275]
[1721565346109,1.099275,3506.1,3505.3,2.85275]
[1721565346809,2.85225,3506.0,3505.2,2.9558]
[1721565347443,2.85225,3506.0,3505.2,5.80869]
[1721565352944,2.85237,3505.9,3505.2,2.9558]
[1721565353109,0.6803895,3505.8,3505.2,2.9558]
[1721565355878,3.5327995,3505.8,3505.2,2.9558]
[1721565357075,2.85258,3505.6,3504.9,2.4948]
[1721565357421,2.85282,3505.3,3504.6,2.4948]
[1721565359973,2.85267,3505.5,3504.6,5.34817]
[1721565360651,2.85258,3505.6,3504.7,2.85328]
[1721565360848,2.85258,3505.6,3504.8,2.4948]
[1721565361073,2.85245,3505.8,3505.0,2.85305]
[1721565361251,2.85245,3505.8,3505.1,2.4948]
[1721565361454,2.8525,3505.7,3505.1,2.4948]
[1721565361637,2.85236,3505.9,3505.1,2.4948]
[1721565361838,3.955422,3505.9,3505.1,2.4948]
[1721565362272,3.955422,3505.9,3505.1,5.34777]
[1721565362789,5.85209,3506.2,3505.3,2.85278]
[1721565364296,2.85219,3506.1,3505.3,2.85278]
[1721565364846,2.85219,3506.1,3505.4,2.4948]
[1721565375078,2.467,3505.9,3505.2,0.55]
[1721565375690,5.31935,3505.9,3505.2,0.55]
[1721565376063,3.669574,3505.8,3505.1,2.3631]
[1721565382385,2.8525,3505.7,3504.8,5.34807]
[1721565382581,2.8525,3505.7,3504.9,0.55]
[1721565383460,2.8525,3505.7,3504.9,3.40313]
[1721565383592,2.8525,3505.7,3504.9,0.55]
[1721565384211,2.8525,3505.7,3505.0,0.99190991]
[1721565384369,2.8525,3505.7,3505.1,0.55]
[1721565393279,5.20796,3505.5,3504.8,2.4949]
[1721565393673,5.20796,3505.5,3504.9,0.99191902]
[1721565393999,5.20796,3505.5,3504.8,2.4949]
[1721565394318,5.20796,3505.5,3504.9,0.99191597]
[1721565394490,5.20796,3505.5,3504.8,2.4949]
[1721565394692,5.20796,3505.5,3504.9,0.99192762]
[1721565394890,5.20796,3505.5,3504.8,2.4949]
[1721565395122,5.20796,3505.5,3504.9,0.99191495]
[1721565395290,5.20796,3505.5,3504.8,2.4949]
[1721565395486,5.20796,3505.5,3504.9,0.99191308]
[1721565395719,5.20796,3505.5,3504.8,2.4949]
[1721565395894,5.20796,3505.5,3504.9,0.99193084]
[1721565396093,5.20796,3505.5,3504.8,2.4949]
[1721565396293,5.20796,3505.5,3504.9,0.99191772]
[1721565396594,5.20796,3505.5,3504.8,2.4949]
[1721565397906,5.20796,3505.5,3504.9,0.99195568]
[1721565398107,5.20796,3505.5,3504.8,2.4949]
[1721565398302,2.3553,3505.5,3504.9,0.99194017]
[1721565398530,2.3553,3505.5,3504.8,6.31748131]
[1721565398698,2.3553,3505.5,3504.9,0.99193124]
[1721565398900,2.3553,3505.5,3504.8,6.31748131]
[1721565399242,2.3553,3505.5,3504.9,0.9919313]
[1721565399391,2.3553,3505.5,3504.8,6.31748131]
[1721565399591,2.3553,3505.5,3504.9,0.99193103]
[1721565399818,2.3553,3505.5,3504.8,6.31748131]
[1721565400336,2.8525,3505.7,3505.0,2.85306]
[1721565401192,2.3553,3505.8,3505.0,2.85306]
[1721565402020,5.20771,3505.8,3505.0,2.85306]
[1721565405658,5.20771,3505.8,3505.1,0.99187321]
[1721565405866,5.20771,3505.8,3505.0,2.85306]
[1721565406048,5.20771,3505.8,3505.1,0.99187317]
[1721565406231,5.20771,3505.8,3505.0,2.85306]
[1721565406425,5.20771,3505.8,3505.1,0.99187321]
[1721565406660,5.20771,3505.8,3505.0,2.85306]
[1721565406820,5.20771,3505.8,3505.1,0.99187321]
[1721565407019,5.20771,3505.8,3505.0,2.85306]
[1721565407254,5.20771,3505.8,3505.1,0.99187322]
[1721565407432,5.20771,3505.8,3505.0,2.85306]
[1721565407631,5.20771,3505.8,3505.1,0.99187326]
[1721565407845,5.20771,3505.8,3505.0,2.85306]
[1721565408167,5.20771,3505.8,3505.1,0.99187314]
[1721565408319,5.20771,3505.8,3505.0,3.97508703]
[1721565408516,2.85241,3505.8,3505.2,2.4724]
[1721565409067,5.20758,3506.0,3505.2,2.4724]
[1721565409674,5.20758,3506.0,3505.2,5.32529]
[1721565410339,2.3553,3506.0,3505.3,2.8528]
[1721565410523,3.0,3506.2,3505.6,2.4724]
[1721565410730,3.0,3506.2,3505.6,5.32491]
[1721565410938,3.0,3506.3,3505.7,2.85249]
[1721565414183,3.0,3506.5,3505.7,2.85249]
[1721565414383,4.853881,3506.5,3505.7,2.85249]
[1721565414584,7.705731,3506.5,3505.7,2.85249]
[1721565419646,2.85193,3506.4,3505.7,2.85249]
[1721565419852,3.0,3506.3,3505.6,5.32495]
[1721565420082,1.0705811,3506.2,3505.6,5.32495]
[1721565422946,1.0705811,3506.2,3505.6,2.4724]
[1721565431478,1.0705811,3506.2,3505.3,2.3952]
[1721565431795,2.8523,3506.0,3505.3,2.3952]
[1721565435582,2.85217,3506.1,3505.3,5.24801]
[1721565436708,2.85217,3506.1,3505.4,2.3689]
[1721565437299,2.85217,3506.1,3505.4,5.22163]
[1721565437725,1.0705811,3506.2,3505.4,5.22163]
[1721565438798,3.9226711,3506.2,3505.4,5.22163]
[1721565444422,1.22337211,3506.1,3505.4,5.22163]
[1721565445412,4.07555211,3506.1,3505.4,5.22163]
[1721565445733,4.07555211,3506.1,3505.4,2.85273]
[1721565445936,5.28887,3505.9,3505.0,5.83613122]
[1721565446105,0.93644221,3505.8,3505.1,0.99185296]
[1721565446303,0.93644221,3505.8,3505.0,2.3862]
[1721565447414,0.93644221,3505.8,3505.1,2.85298]
[1721565451461,5.28887,3505.9,3505.1,2.85298]
[1721565455523,2.85237,3505.9,3505.1,2.85298]
[1721565456064,2.85237,3505.9,3505.2,0.9918435]
[1721565456262,2.85237,3505.9,3505.1,2.85298]
[1721565456464,2.85237,3505.9,3505.2,0.99183784]
[1721565456623,2.85237,3505.9,3505.1,2.85298]
[1721565456824,2.85237,3505.9,3505.2,0.99183798]
[1721565457070,2.85237,3505.9,3505.1,2.85298]
[1721565457879,2.85237,3505.9,3505.2,0.99185864]
[1721565458050,2.85237,3505.9,3505.1,2.85298]
[1721565458247,2.85237,3505.9,3505.2,0.99183436]
[1721565458453,2.85237,3505.9,3505.1,2.85298]
[1721565458801,2.85237,3505.9,3505.2,0.99183444]
[1721565458967,2.85237,3505.9,3505.1,2.85298]
[1721565459171,2.85237,3505.9,3505.2,0.99183446]
[1721565459481,2.85237,3505.9,3505.1,2.85298]
[1721565459775,2.85237,3505.9,3505.2,0.99183575]
[1721565459983,2.85237,3505.9,3505.1,2.85298]
[1721565460185,2.85237,3505.9,3505.2,0.99182837]
[1721565460388,2.85237,3505.9,3505.1,2.85298]
[1721565460691,2.85237,3505.9,3505.2,0.99182825]
[1721565460890,2.85225,3506.0,3505.2,2.85284]
[1721565465560,2.85243,3505.8,3505.0,5.23924]
[1721565465764,2.85243,3505.8,3505.1,0.99186351]
[1721565465999,2.85243,3505.8,3505.0,5.23924]
[1721565466291,2.85243,3505.8,3505.1,0.99188609]
[1721565466463,2.85243,3505.8,3505.0,5.23924]
[1721565466668,2.85243,3505.8,3505.1,0.99188579]
[1721565466868,2.85243,3505.8,3505.0,5.23924]
[1721565467957,2.85243,3505.8,3505.1,0.99187808]
[1721565468278,2.4857,3505.7,3505.0,5.23924]
[1721565468478,2.4857,3505.7,3505.1,0.99187873]
[1721565468677,2.4857,3505.7,3505.0,5.23924]
[1721565470605,2.4857,3505.7,3505.0,2.85304]
[1721565470806,0.533813,3505.6,3505.0,2.85304]
[1721565470992,2.4857,3505.7,3505.0,2.85304]
[1721565473794,2.4857,3505.7,3505.0,5.13314]
[1721565473989,2.4857,3505.7,3505.0,2.2801]
[1721565474194,2.2807,3506.2,3505.0,2.2801]
[1721565474493,5.2807,3506.2,3505.0,2.2801]
[1721565474714,0.52807,3506.1,3505.0,2.2801]
[1721565474997,3.0,3506.1,3505.1,0.99187708]
[1721565475225,2.2807,3506.2,3505.0,2.2801]
[1721565475420,2.2807,3506.2,3505.1,0.99187701]
[1721565475593,2.2807,3506.2,3505.0,2.2801]
[1721565475796,2.2807,3506.2,3505.1,1.54186842]
[1721565475995,0.22807,3506.1,3505.1,0.55]
[1721565476293,0.22807,3506.1,3505.2,2.2801]
[1721565476294,3.22807,3506.1,3505.2,2.2801]
[1721565476519,3.22807,3506.1,3505.3,0.55]
[1721565482205,2.2807,3506.0,3505.3,0.55]
[1721565482420,2.2807,3506.0,3504.9,2.87700122]
[1721565482621,0.550877,3505.9,3505.0,3.02969678]
[1721565482827,0.550877,3505.9,3505.0,0.55]
[1721565483034,0.550877,3505.9,3505.1,0.99188025]
[1721565483248,0.550877,3505.9,3505.0,0.55]
[1721565483447,0.550877,3505.9,3505.1,0.99187263]
[1721565483743,0.550877,3505.9,3505.0,0.55]
[1721565483906,2.2807,3506.0,3505.1,2.47967562]
[1721565484104,2.2807,3506.0,3505.0,0.98223531]
[1721565484307,2.2807,3506.0,3505.1,2.47965261]
[1721565484519,2.2807,3506.0,3505.2,0.99185988]
[1721565484720,2.2807,3506.0,3505.0,0.98223531]
[1721565484920,2.2807,3506.0,3505.1,2.9551018]
[1721565485122,2.2807,3506.0,3505.2,0.99185718]
[1721565485327,2.2807,3506.0,3505.1,0.47545884]
[1721565485551,2.2807,3506.0,3505.2,0.99186191]
[1721565485743,2.2807,3506.0,3505.1,0.47545884]
[1721565486140,2.2807,3506.0,3505.2,0.99185581]
[1721565486460,2.2807,3506.0,3505.1,0.47545884]
[1721565486615,2.2807,3506.0,3505.2,0.99185658]
[1721565486817,2.2807,3506.0,3505.1,0.47545884]
[1721565487045,2.2807,3506.0,3505.2,0.99185718]
[1721565487230,2.2807,3506.0,3505.1,0.47545884]
[1721565487430,2.2807,3506.0,3505.2,0.99185161]
[1721565487629,2.2807,3506.0,3505.1,0.47545884]
[1721565487844,2.2807,3506.0,3505.2,0.99185438]
[1721565488042,2.2807,3506.0,3505.1,0.47545884]
[1721565488231,2.2807,3506.0,3505.2,0.99185365]
[1721565488432,2.2807,3506.0,3505.1,0.47545884]
[1721565488628,2.2807,3506.0,3505.2,0.99185937]
[1721565488929,2.2807,3506.0,3505.1,0.47545884]
[1721565489332,2.2807,3506.0,3505.2,2.4796229]
[1721565489562,2.2807,3506.0,3505.1,0.47545884]
[1721565489765,2.831577,3506.0,3505.2,0.99186612]
[1721565489971,2.831577,3506.0,3505.0,0.55]
[1721565490138,2.831577,3506.0,3505.1,2.47974637]
[1721565490329,2.831577,3506.0,3505.0,0.55]
[1721565490535,2.831577,3506.0,3505.1,2.47975785]
[1721565490762,2.831577,3506.0,3505.2,0.99190314]
[1721565490961,2.831577,3506.0,3505.0,0.55]
[1721565491167,2.831577,3506.0,3505.1,2.47975788]
[1721565491368,2.831577,3506.0,3505.2,0.99190315]
[1721565491575,2.831577,3506.0,3505.0,1.57913653]
[1721565491777,2.831577,3506.0,3505.1,2.47974535]
[1721565491964,2.831577,3506.0,3505.2,0.99189814]
[1721565492272,2.831577,3506.0,3505.0,1.57913653]
[1721565492470,2.831577,3506.0,3505.1,2.4797425]
[1721565492679,2.831577,3506.0,3505.2,0.991897]
[1721565492878,2.831577,3506.0,3505.0,1.57913653]
[1721565493177,2.831577,3506.0,3505.1,2.47972991]
[1721565493377,2.831577,3506.0,3505.2,0.99189196]
[1721565493550,2.831577,3506.0,3505.0,1.57913653]
[1721565493737,2.831577,3506.0,3505.1,2.47973863]
[1721565493937,2.831577,3506.0,3505.2,0.99189545]
[1721565494253,2.831577,3506.0,3505.0,0.98223531]
[1721565494453,2.831577,3506.0,3505.1,2.47975698]
[1721565494650,2.831577,3506.0,3505.2,0.99190279]
[1721565494852,2.831577,3506.0,3505.0,1.57913653]
[1721565495052,2.831577,3506.0,3505.1,2.47972665]
[1721565495238,2.831577,3506.0,3505.2,0.99189066]
[1721565495461,2.831577,3506.0,3505.0,1.57913653]
[1721565495668,2.831577,3506.0,3505.1,2.47972932]
[1721565495860,2.831577,3506.0,3505.2,0.99189173]
[1721565496141,2.831577,3506.0,3505.0,1.57913653]
[1721565496376,2.831577,3506.0,3505.1,2.47972893]
[1721565496584,2.831577,3506.0,3505.2,0.99189157]
[1721565496743,2.3043,3505.8,3505.0,1.14690122]
[1721565496943,2.3043,3505.8,3505.1,2.4797538]
[1721565497239,2.3043,3505.8,3505.2,0.99190152]
[1721565497578,2.3043,3505.8,3505.0,0.55]
[1721565497778,2.3043,3505.8,3505.1,2.47977895]
[1721565498079,2.3043,3505.8,3505.2,0.99191158]
[1721565498283,2.3043,3505.8,3505.0,0.55]
[1721565498487,2.3043,3505.8,3505.1,2.47978038]
[1721565498774,2.3043,3505.8,3505.0,0.98223531]
[1721565498986,2.3043,3505.8,3505.1,0.9919194]
[1721565499139,2.3043,3505.8,3505.0,0.98223531]
[1721565499339,2.3043,3505.8,3505.1,0.99191278]
[1721565499635,2.3043,3505.8,3505.0,0.98223531]
[1721565499838,2.3043,3505.8,3505.1,0.99192165]
[1721565500082,2.3043,3505.8,3505.0,0.98223531]
[1721565500283,2.3043,3505.8,3505.1,0.99192167]
[1721565500463,2.3043,3505.8,3505.0,0.98223531]
[1721565500779,2.3043,3505.8,3505.1,0.99192187]
[1721565500981,2.3043,3505.8,3505.0,0.55]
[1721565501155,2.3043,3505.8,3505.1,0.99191265]
[1721565501482,2.3043,3505.8,3505.0,0.55]
[1721565501680,2.3043,3505.8,3505.1,0.99192192]
[1721565501867,2.3043,3505.8,3505.0,0.55]
[1721565502066,2.3043,3505.8,3505.1,0.99191285]
[1721565502270,2.3043,3505.8,3505.0,0.55]
[1721565502473,2.3043,3505.8,3505.1,0.99193061]
[1721565502785,2.3043,3505.8,3505.0,0.98223531]
[1721565503184,2.3043,3505.8,3505.1,0.99194456]
[1721565503392,2.3043,3505.8,3505.0,0.98223531]
[1721565503688,2.3043,3505.8,3505.1,0.99191573]
[1721565503884,2.3043,3505.8,3505.0,0.55]
[1721565504191,2.3043,3505.8,3505.1,0.99191534]
[1721565504488,2.3043,3505.8,3505.0,0.55]
[1721565504691,2.3043,3505.8,3505.0,0.98223531]
[1721565504892,2.3043,3505.8,3505.1,0.99190482]
[1721565505191,2.3043,3505.8,3505.0,0.98223531]
[1721565505366,2.3043,3505.8,3505.1,0.99190524]
[1721565505367,2.8525,3505.7,3505.1,0.99190524]
[1721565505687,2.8525,3505.7,3505.0,3.83527531]
[1721565505895,2.8525,3505.7,3505.1,0.99190535]
[1721565506188,2.8525,3505.7,3505.0,3.83527531]
[1721565506379,2.8525,3505.7,3505.1,0.99190443]
[1721565506581,2.8525,3505.7,3505.0,3.83527531]
[1721565506887,2.8525,3505.7,3505.1,0.99190484]
[1721565507094,2.8525,3505.7,3505.0,3.83527531]
[1721565507250,2.8525,3505.7,3505.1,0.9918967]
[1721565507451,2.3043,3505.8,3505.0,3.83527531]
[1721565507787,2.3043,3505.8,3505.1,3.43626196]
[1721565507956,2.3043,3505.8,3505.2,0.99188492]
[1721565508283,5.15672,3505.8,3505.3,0.9918572]
[1721565508587,5.15672,3505.8,3505.1,0.95654965]
[1721565508588,5.15672,3505.8,3505.1,1.55345087]
[1721565508889,5.15672,3505.8,3505.2,2.47960622]
[1721565509088,5.15672,3505.8,3505.3,0.99184249]
[1721565509256,5.15672,3505.8,3505.1,0.95654965]
[1721565509451,5.15672,3505.8,3505.2,2.47964225]
[1721565509683,5.15672,3505.8,3505.1,0.95654965]
[1721565509870,5.15672,3505.8,3505.2,2.47964216]
[1721565510053,5.15672,3505.8,3505.3,0.99185686]
[1721565510260,5.15672,3505.8,3505.1,3.80952965]
[1721565510464,5.15672,3505.8,3505.2,2.47962752]
[1721565510758,2.85232,3506.0,3505.3,0.99185101]
[1721565510759,5.24652,3506.0,3505.3,0.99185101]
[1721565510992,5.24652,3506.0,3505.2,2.3458]
[1721565511298,5.24652,3506.0,3505.3,2.47956371]
[1721565511604,5.24652,3506.0,3505.2,2.88026027]
[1721565511897,5.24652,3506.0,3505.3,0.99182991]
[1721565512106,5.24652,3506.0,3505.2,2.88026027]
[1721565512302,5.24652,3506.0,3505.3,3.84463993]
[1721565512507,5.24652,3506.0,3505.3,2.85281]
[1721565525417,3.504062,3506.0,3505.2,2.3458]
[1721565525623,2.4385,3505.7,3505.1,2.85293]
[1721565525918,2.4385,3505.7,3505.2,1.54189856]
[1721565526119,2.4385,3505.7,3505.2,0.55]
[1721565530500,5.29099,3505.7,3505.2,0.55]
[1721565530708,3.666912,3505.6,3505.0,0.55]
[1721565531012,2.85267,3505.5,3505.1,0.99190471]
[1721565531223,2.85267,3505.5,3505.0,0.55]
[1721565531425,2.85267,3505.5,3504.9,0.55]
[1721565531591,2.85267,3505.5,3505.0,0.99195907]
[1721565531927,2.85267,3505.5,3504.9,0.55]
[1721565532229,5.29104,3505.7,3505.0,2.47988468]
[1721565532447,5.29104,3505.7,3505.1,0.99195802]
[1721565532731,5.29104,3505.7,3504.9,4.73448653]
[1721565532917,5.29104,3505.7,3505.0,2.47975105]
[1721565533090,5.29104,3505.7,3505.1,0.99190042]
[1721565533295,5.29104,3505.7,3505.1,0.78156458]
[1721565534326,5.29104,3505.7,3505.2,0.99189126]
[1721565534535,5.29104,3505.7,3505.1,0.78156458]
[1721565534697,5.29104,3505.7,3505.2,0.99189125]
[1721565535035,5.29104,3505.7,3505.1,0.78156458]
[1721565535204,5.29104,3505.7,3505.2,0.99189093]
[1721565535424,5.29104,3505.7,3505.0,0.59690122]
[1721565535627,5.29104,3505.7,3505.1,2.47964826]